Cogmind - Beta 12 @@@ ROGUE MODE // 2024.02.16 @ 17:11:34 Player: Sir Vaelion Result: Destroyed by G-34 Mercenary with Small Laser Performance ------------- Evolutions (0) 0 Regions Visited (3) 600 Robots Destroyed (13) 65 Value Destroyed (255) 255 Prototype IDs (1) 20 Alien Tech Used (0) 0 Bonus (300) 300 TOTAL SCORE: 1240 Bonus ------- Aligned with FarCom 300 Cogmind --------- Core Integrity 0/250 Matter 456/500 Energy 125/125 System Corruption 0% Temperature Warm (102) Movement Walking (90) Location -10/Exiles Parts ------- > --- POWER (1) -------- Light Ion Engine > --- PROPULSION (2) --- Potential Leg Potential Leg > --- UTILITY (2) ------ Small Storage Unit High-capacity Matter Pod > --- WEAPON (2) ------- Particle Cannon Improved Light Cannon > --- INVENTORY (8) ---- Light Ion Engine Flight Unit Flight Unit Large Battery (200) Weight Redist. System Light Assault Rifle Datajack Makeshift Spear Peak State ------------ > --- POWER ------------ Light Ion Engine > --- PROPULSION ------- Potential Leg Potential Leg > --- UTILITY ---------- Small Storage Unit High-capacity Matter Pod > --- WEAPON ----------- Particle Cannon Improved Light Cannon > --- INVENTORY -------- Light Ion Engine Flight Unit Flight Unit Large Battery Weight Redist. System Light Assault Rifle Datajack Makeshift Spear [Rating: 28] Favorites ----------- Power Light Ion Engine Engine Light Ion Engine Propulsion Aluminum Leg Leg Aluminum Leg Hover Unit Hover Unit Utility High-capacity Matter Pod Storage High-capacity Matter Pod Weapon Light Assault Rifle Energy Cannon Particle Cannon Ballistic Gun Light Assault Rifle Ballistic Cannon Improved Light Cannon Special Weapon Mining Laser Piercing Weapon Makeshift Spear Special Melee Weapon Datajack Build | -11 -10 -10 -10 ------- Run | Jun Mat Min Exi Slots Evolved . | . . . . Power . | . . . . Propulsion . | . . . . Utility . | . . . . Weapon . | . . . . Parts Attached 27 | 6 13 6 2 Power 2 | 1 1 . . Engine 2 | 1 1 . . Core . | . . . . Reactor . | . . . . Propulsion 7 | 2 3 . 2 Treads . | . . . . Leg 6 | 2 2 . 2 Wheel . | . . . . Hover 1 | . 1 . . Flight . | . . . . Utility 7 | 1 2 4 . Device . | . . . . Storage 7 | 1 2 4 . Processor . | . . . . Hackware . | . . . . Protection . | . . . . Artifact . | . . . . Weapon 11 | 2 7 2 . Energy Gun . | . . . . Energy Cannon 2 | . 1 1 . Ballistic Gun 5 | 2 3 . . Ballistic Cannon 1 | . 1 . . Launcher . | . . . . Special Weapon 1 | . 1 . . Impact Weapon . | . . . . Slashing Weapon . | . . . . Piercing Weapon 1 | . . 1 . Special Melee Weapon 1 | . 1 . . Unidentified Prototypes 1 | . . . 1 Parts Lost 5 | . 5 . . Power 1 | . 1 . . Propulsion 2 | . 2 . . Utility . | . . . . Weapon 2 | . 2 . . Highest Loss Streak 4 | . 4 . . To Critical Strikes . | . . . . Average Slot Usage (%) 94 | . 89 100 99 Engine 13 | . 12 14 14 Leg 23 | . 20 28 27 Storage 27 | . 26 28 28 Energy Cannon 7 | . 3 13 14 Ballistic Gun 11 | . 20 . . Ballistic Cannon 7 | . 2 14 14 Naked Turns . | . . . . Heaviest Build 20 | 10 18 20 20 Greatest Support 60 | 20 20 20 60 Greatest Overweight (x) 6 | 1 5 . 6 Average Overweight (x) . | . . . . Largest Inventory Capacity 8 | 8 8 8 8 Average Capacity 6 | 6 5 5 8 Most Carried 8 | 6 5 8 8 Average Carried 4 | 1 3 5 7 Final Capacity 8 | 8 5 8 8 Final Carried 8 | 2 4 8 8 Class Distribution -------------------- 100% | Mutant Dominant Class ---------------- Mutant | -10/Materials Mutant | -10/Mines Mutant | -10/Exiles Resources | -11 -10 -10 -10 ----------- Run | Jun Mat Min Exi Matter Collected 710 | 260 352 98 . Remotely . | . . . . Salvage Created 274 | . 253 21 . Parts 27 | . 21 6 . Haulers Intercepted . | . . . . Recyclers Shooed . | . . . . Parts Field Recycled . | . . . . Retrieved Matter . | . . . . Parts Self-Destructed . | . . . . Prevented . | . . . . Kills | -11 -10 -10 -10 ------- Run | Jun Mat Min Exi Combat Hostiles Destroyed 12 | . 9 3 . Guns 8 | . 8 . . Cannons 4 | . 1 3 . Classes Destroyed 3 | . 3 . . Watcher 1 | . 1 . . Swarmer 8 | . 5 3 . Grunt 4 | . 4 . . Best Kill Streak 3 | . 2 3 . Combat Bots Only 3 | . 2 3 . Max Kills in Single Turn 1 | . 1 1 . Gunslinging . | . . . . Exploded . | . . . . Melee . | . . . . Uniques/NPCs Destroyed . | . . . . Combat | -11 -10 -10 -10 -------- Run | Jun Mat Min Exi Damage Taken 972 | . 633 113 226 Core 256 | . 177 32 47 Absorbed by Shields . | . . . . Core Remaining (%) 100 | 100 . . . Volleys Fired 50 | . 44 4 2 Largest 2 | . 2 2 2 Hottest 120 | . 120 107 107 Shots Fired 93 | . 82 7 4 Gun 69 | . 69 . . Cannon 19 | . 8 7 4 Launcher . | . . . . Special 5 | . 5 . . Kinetic 79 | . 73 4 2 Thermal 14 | . 9 3 2 Explosive . | . . . . Electromagnetic . | . . . . Robot Hit Streak 10 | . 10 3 1 Robot Miss Streak 7 | . 7 1 2 Penetration Max . | . . . . Secondary Targets . | . . . . Shots Hit Robots 54 | . 49 4 1 Core Hits 26 | . 22 3 1 Critical Kills . | . . . . Critical Parts Destroyed 1 | . 1 . . Critical Strikes 1 | . 1 . . Destroy 1 | . 1 . . Melee Attacks 3 | . 2 1 . Impact . | . . . . Slashing . | . . . . Piercing 1 | . . 1 . Sneak Attacks . | . . . . Combat Hostiles . | . . . . Follow-up Attacks . | . . . . Damage Inflicted 591 | . 467 103 21 Guns 381 | . 381 . . Cannons 186 | . 62 103 21 Explosions . | . . . . Melee . | . . . . Ramming . | . . . . Kinetic 484 | . 402 82 . Thermal 107 | . 65 21 21 Explosive . | . . . . Electromagnetic . | . . . . Impact . | . . . . Slashing . | . . . . Piercing . | . . . . Highest Corruption . | . . . . Average Corruption . | . . . . Corruption Purged . | . . . . Corruption Blocked . | . . . . Overload Shots . | . . . . Overflow Damage 1 | . 1 . . Projectiles 1 | . 1 . . Explosions . | . . . . Melee . | . . . . Knockbacks . | . . . . Impact . | . . . . Kinetic . | . . . . Secondary . | . . . . Self-Inflicted Damage . | . . . . Shots . | . . . . Rammed . | . . . . Targets Rammed . | . . . . Kicked . | . . . . Crushed . | . . . . Highest Temperature 135 | . 113 135 96 Average Temperature 46 | . 39 69 58 Received Heat Transfer 225 | . 195 . 30 Siege Activations . | . . . . Robots Corrupted . | . . . . Combat Hostiles . | . . . . Parts Fried . | . . . . Impact Corruptions . | . . . . Robots Melted . | . . . . Combat Hostiles . | . . . . Parts Melted . | . . . . Heat Transferred 198 | . 124 37 37 Parts Sabotaged . | . . . . Parts Stolen . | . . . . Parts Stripped . | . . . . Power Chain Reactions . | . . . . Missiles Intercepted . | . . . . Alert | -11 -10 -10 -10 ------- Run | Jun Mat Min Exi Peak Influence 185 | . 185 113 . Initial 43 | . . 43 . Average 63 | . 70 68 . Maximum Alert Level . | . . . . Low Security (%) 100 | 100 100 100 . Level 1 . | . . . . Level 2 . | . . . . Level 3 . | . . . . Level 4 . | . . . . Level 5 . | . . . . High Security . | . . . . Max Security . | . . . . Squads Dispatched . | . . . . Investigation . | . . . . Extermination . | . . . . Reinforcement . | . . . . Assault . | . . . . Garrison . | . . . . Intercept . | . . . . Searches Triggered . | . . . . Construction Impeded . | . . . . Haulers Reinforced . | . . . . Active Scanning Responses . | . . . . Cargo Convoy Interrupts . | . . . . Stealth | -11 -10 -10 -10 --------- Run | Jun Mat Min Exi Distress Signals 2 | . 2 . . Communications Jammed . | . . . . Distress Signals . | . . . . Times Spotted 31 | . 20 3 8 Peak Tracking Total 8 | . 6 3 8 Tactical Retreats 2 | . 2 . . Traps | -11 -10 -10 -10 ------- Run | Jun Mat Min Exi Traps Triggered . | . . . . Indirectly . | . . . . Trap Hack Attempts . | . . . . Triggered . | . . . . Disarmed . | . . . . Reprogrammed . | . . . . Reused . | . . . . Traps Extracted . | . . . . Installed . | . . . . Triggered . | . . . . Exploded 2 | . . . 2 Machines | -11 -10 -10 -10 ---------- Run | Jun Mat Min Exi Machines Disabled 2 | . 2 . . Max in Single Turn 1 | . 1 . . Machines Repaired . | . . . . Machines Sabotaged . | . . . . Overloaded Fab Kills . | . . . . Hacking | -11 -10 -10 -10 --------- Run | Jun Mat Min Exi Machines Accessed 2 | . 2 . . Terminals 1 | . 1 . . Fabricators . | . . . . Repair Stations 1 | . 1 . . Recycling Units . | . . . . Scanalyzers . | . . . . Garrison Access . | . . . . Total Hacks 2 | . 2 . . Successful 1 | . 1 . . Failed 1 | . 1 . . Catastrophic 1 | . 1 . . Database Lockouts . | . . . . Manual 1 | . . . 1 Terminals 1 | . 1 . . Fabricators . | . . . . Repair Stations 1 | . 1 . . Recycling Units . | . . . . Scanalyzers . | . . . . Garrison Access . | . . . . Terminal Hacks 1 | . 1 . . Zone Layout 1 | . 1 . . Fabricator Hacks . | . . . . Repair Station Hacks . | . . . . Recycling Unit Hacks . | . . . . Scanalyzer . | . . . . Garrison Access Hacks . | . . . . Unauthorized Hacks . | . . . . Terminals . | . . . . Fabricators . | . . . . Repair Stations . | . . . . Recycling Units . | . . . . Scanalyzers . | . . . . Garrison Access . | . . . . Data Cores Recovered . | . . . . Used . | . . . . Hacking Detections 1 | . 1 . . Full Trace Events . | . . . . Feedback Events . | . . . . Feedback Blocked . | . . . . Robot Schematics Acquired . | . . . . Robots Built . | . . . . Authchips . | . . . . Time . | . . . . Total Robot Build Rating . | . . . . Part Schematics Acquired . | . . . . Parts Built . | . . . . Authchips . | . . . . Time . | . . . . Total Part Build Rating . | . . . . Parts Repaired . | . . . . Time . | . . . . Parts Recycled . | . . . . Recycled Matter . | . . . . Retrieved Matter . | . . . . Retrieved Components . | . . . . Parts Scanalyzed . | . . . . Part Schematics Acquired . | . . . . Parts Damaged . | . . . . Bothacking | -11 -10 -10 -10 ------------ Run | Jun Mat Min Exi Used RIF Installer . | . . . . Robots Hacked 1 | . 1 . . Non-combat . | . . . . Combat 1 | . 1 . . Robot Hacks Applied 2 | . 2 . . parse_system 2 | . 2 . . Relay Couplers Released . | . . . . Fabnet Peak Effective % . | . . . . Robots Rewired . | . . . . Allies Hacked . | . . . . Hacks Repelled . | . . . . Allies | -11 -10 -10 -10 -------- Run | Jun Mat Min Exi Total Allies . | . . . . Largest Group . | . . . . Highest-Rated Group . | . . . . Highest-Rated Ally . | . . . . Total Orders . | . . . . Ally Attacks . | . . . . Total Damage . | . . . . Kills . | . . . . Allies Corrupted . | . . . . Allies Melted . | . . . . Intel | -11 -10 -10 -10 ------- Run | Jun Mat Min Exi Robot Analysis Total . | . . . . Derelict Logs Recovered 1 | . . 1 . Drone Launches . | . . . . Drone Recoveries . | . . . . Exploration | -11 -10 -10 -10 ------------- Run | Jun Mat Min Exi Turns Passed 1288 | 82 652 273 281 Spaces Moved 806 | 49 321 197 239 Core 63 | 22 39 . 2 Treads . | . . . . Legs 717 | 27 256 197 237 Wheels . | . . . . Hover 26 | . 26 . . Flight . | . . . . Fastest Speed 50 | 50 120 120 90 Average Speed 121 | 93 134 120 111 Slowest Speed 350 | 120 300 120 350 Overloaded Moves . | . . . . Propulsion Burnouts . | . . . . Robots Hopped . | . . . . Cave-ins Triggered . | . . . . Exploration Rate (%) 35 | 3 48 47 42 Regions Visited 3 Branch Regions 2 Pre-discovered Areas . | . . . . Known Exits Taken . | . . . . Unknown Exits Taken 3 | 1 1 1 . Scrap Searched . | . . . . Spaces Dug . | . . . . Terrain Destroyed . | . . . . Melee . | . . . . Projectile . | . . . . AOE . | . . . . Terrain Rammed . | . . . . Walls Destroyed . | . . . . Machines Disabled . | . . . . Actions | -11 -10 -10 -10 --------- Run | Jun Mat Min Exi Total 1022 | 84 465 224 249 Wait 102 | 23 70 9 . Move 803 | 48 320 196 239 Hop . | . . . . Pick Up 25 | 7 10 6 2 Fast Attach 4 | 1 1 . 2 Attach 17 | 5 10 2 . Detach 3 | . 3 . . Swap 6 | . 2 4 . Drop 9 | . 3 2 4 Fire 50 | . 44 4 2 Melee 3 | . 2 1 . Ram . | . . . . Kick . | . . . . Crush . | . . . . Escape Stasis . | . . . . Rewire . | . . . . Trap . | . . . . Miscellaneous . | . . . . Route ------- -11/Junkyard -10/Materials (discovered 2 exits: [*Mat] / [*Min]) -10/Mines -10/Exiles (discovered 1 exit: [*Min]) History --------- Turn | Location | Event 25 | -11/Junkyard | Discovered new exit (range 16) 83 | -11/Junkyard | Entered Materials 185 | -10/Materials | Discovered new exit (range 15) 302 | -10/Materials | Build established: Mutant 470 | -10/Materials | Discovered new exit (range 12) 515 | -10/Materials | Core integrity fell below 50% 550 | -10/Materials | Lost 4 parts (1p2n1w) 735 | -10/Materials | Entered Mines 818 | -10/Mines | A weapon hastily lodged in a ceiling crevice suddenly fell to the ground 881 | -10/Mines | Learned Materials security intel 906 | -10/Mines | Core integrity fell below 20% 1003 | -10/Mines | Deemed a non-threat by the Exiles lab entrance 1003 | -10/Mines | Discovered new exit (range 5) 1008 | -10/Mines | Entered Exiles 1044 | -10/Exiles | Discovered new exit (range 15) 1059 | -10/Exiles | Met 8R-AWN 1082 | -10/Exiles | Met EX-HEX 1145 | -10/Exiles | Met EX-BIN 1159 | -10/Exiles | Aligned with FarCom system 1160 | -10/Exiles | Given EX-Vault access code 1188 | -10/Exiles | Opened EX-Vault 1208 | -10/Exiles | Found Prototype Leg 1208 | -10/Exiles | Identified Potential Leg 1210 | -10/Exiles | Found Potential Leg 1233 | -10/Exiles | Warned to stay clear of 0b10 Research branches 1237 | -10/Exiles | Exiles lab attacked by MAIN.C 1289 | -10/Exiles | Destroyed by G-34 Mercenary with Small Laser Last Messages --------------- Identified Potential Leg. The Potential Leg is "overloadable", activating it again increases its output for additional resource costs, and may damage the unit. Acquired Potential Leg. EX-BIN: Oh yeah, I'd suggest you stay away from the 0b10 Research branches, since the FarCom signals could be picked up there, but you're welcome to try if you really want to. And if we have to leave here due to unforeseen circumstances, don't worry the FarCom system will continue to maintain contact via our distributed network. EXILES: Incoming Unaware force detected on approach from Mines. Prepare for evacuation. 8R-AWN: "We've got company!" 8R-AWN: "I'll cover you all, get out of here!" EX-HEX collects data from the Assembled Analyzer. EXILES: Lab perimeter alert, evacuate immediately. Rigged Rnf. Deuterium Engine explodes. S-10 Pest destroyed. Machine disabled. Penetrated by Slug. Map ----- +----------------------------------------------------+ | ?????????????????????????????????????????????????? | | ?????????????????????????????????????????????????? | | ?????????????????????????????????????????????????? | | ?????????????????????????????????????????????????? | | ?????????????????????????????????????????????????? | | ?????????????????????????????????????????????????? | | ?????????????????????????????????????????????????? | | ?????????????????????????????????????????????????? | | ?????????????????????????????????????????????????? | | ?????????????????????????????????????????????????? | | ?????????????????????????????????????????????????? | | ??????????????????????????????????????????# ????? | | ?????????????????????????????????????????? #???? | | ????????????????????????????????????????? < #???? | | #####???????????????????????????????????? #???? | | """"##??????????????????????????????????? ????? | | """"##?????????????????????????????????# #????? | | " #???????????????????????????????## ##???? | | """#???????????????????????????????# #???? | | " "#???????????#####???????????????# #???? | | " "##?????????##" ######?????????## ????? | | ""###???????#" # # ###??????## #?????? | | """#??????##" ##????## #?????? | | "#????### ### ;g;h #??????? | | ##???# ; ;g #??????? | | ##?## @ ; %d ##??????? | | ### [% *ggg ##??????? | | ## * h #??????? | | #### ##?????? | | ""#?#"" ###???? | | #"""##?#### ##### * ###?? | | ######?????######???##### ##? | | ##???????????????????????### #? | | ##??????????????????????????### #? | | " ""#?????????????????????????????### #? | | " "##??????????????????????????????#" ## | | #"""""""##???????????????????????????????#### # | | #########???????????????????????????????????# | | ????????????????????????????????????????????## | | ?????????????????????????????????????????????### | | ???????????????????????????????????????????????# | | ???????????????????????????????????????????????## | | ????????????????????????????????????????????????## | | ?????????????????????????????????????????????????? | | ?????????????????????????????????????????????????? | | ?????????????????????????????????????????????????? | | ?????????????????????????????????????????????????? | | ?????????????????????????????????????????????????? | | ?????????????????????????????????????????????????? | | ?????????????????????????????????????????????????? | +----------------------------------------------------+ Best States ------------- Heat Dissipation 25 Energy Generation 10 Energy Capacity 325 Matter Stores 500 Matter Capacity 500 Sight Range 16 Terrain Scan Density 10 Evasion (%) 57 Item Schematics ----------------- None Robot Schematics ------------------ None Fabricated ------------ Nothing Alien Tech Used ----------------- None Achievements -------------- None Challenges ------------ None Game ------ Seed AssembledMeleeMinigun Manual? 0 Play Time 00:28:34 Cumulative 3.3 hours Start 2024.02.16 @ 16:33:27 End 2024.02.16 @ 17:11:34 Sessions 1 Manual Loads 0 Difficulty Rogue Special Mode None Game No. 5 Rogue 3 Adventurer 2 Explorer 0 Win Type - Total 0 Types 0/0/0/0/0/0/0/0/0 Lore% 8 Gallery% 8 Achievement% 8 Wizard Run 0 Options --------- ASCII 0 Keyboard 0 Movement Mouse Keybinds 0 Fullscreen 2 Font 18/X11 Map View 76x50 Tactical HUD 0 Map Filters NONE Filters NONE Steam 1 RUN: c5c00e26-1396-4e8d-94a6-d4d1989a0abc